bitfinex-derivatives/quotes_BTCF0:USTF0_20251208
["timestamp","ask_amount","ask_price","bid_price","bid_amount"]
[1765158561407,0.1091,91154.0,91153.0,0.05302]
[1765158561611,0.1200702,91148.0,91147.0,0.00016462]
[1765158564113,0.1200702,91148.0,91147.0,0.00216462]
[1765158564615,0.3120702,91148.0,91147.0,0.00216462]
[1765158565013,0.33997016,91148.0,91147.0,0.00216462]
[1765158567615,0.33997016,91148.0,91147.0,0.05518462]
[1765158567815,0.14997016,91148.0,91147.0,0.11070462]
[1765158568313,0.14997016,91148.0,91147.0,0.00216462]
[1765158569114,0.39997016,91148.0,91147.0,0.00216462]
[1765158569817,0.14997016,91148.0,91147.0,0.00216462]
[1765158570316,0.14997016,91148.0,91147.0,0.05518462]
[1765158570712,0.14997016,91148.0,91147.0,0.11070462]
[1765158571012,0.14997016,91148.0,91147.0,0.00216462]
[1765158571222,0.22997016,91148.0,91147.0,0.00216462]
[1765158572215,0.02989996,91148.0,91147.0,0.11070462]
[1765158575119,0.02810142,91148.0,91147.0,0.11070462]
[1765158575517,0.13720142,91148.0,91147.0,0.11070462]
[1765158577621,0.02810142,91148.0,91147.0,0.11070462]
[1765158577823,0.02810142,91148.0,91147.0,0.49070462]
[1765158578124,0.05914494,91162.0,91148.0,0.0109702]
[1765158578310,0.06617695,91166.0,91165.0,0.10854]
[1765158578516,0.12050695,91166.0,91165.0,0.10854]
[1765158578716,0.10953885,91166.0,91165.0,0.10854]
[1765158579627,0.11353885,91166.0,91165.0,0.10854]
[1765158580124,0.11853885,91166.0,91165.0,0.10854]
[1765158580522,0.11453885,91166.0,91165.0,0.10854]
[1765158580721,0.05976885,91166.0,91165.0,0.11554]
[1765158581028,0.00143885,91166.0,91165.0,0.11554]
[1765158581214,0.00143885,91166.0,91165.0,0.50554]
[1765158583518,0.16450494,91188.0,91187.0,0.10567]
[1765158583718,0.10536,91188.0,91187.0,0.10567]
[1765158583913,0.0109651,91191.0,91190.0,0.10567]
[1765158584123,0.1163246,91196.0,91195.0,0.0529]
[1765158584329,0.10536,91196.0,91195.0,0.10567]
[1765158584724,0.10536,91196.0,91195.0,0.1166346]
[1765158585025,0.0546,91196.0,91195.0,0.10567]
[1765158585216,0.16430495,91196.0,91195.0,0.10567]
[1765158585416,0.16430631,91196.0,91195.0,0.10567]
[1765158585816,0.16430631,91196.0,91195.0,0.10767]
[1765158586024,0.10536,91196.0,91195.0,0.10767]
[1765158586220,0.16628421,91196.0,91195.0,0.05477]
[1765158586621,0.16628421,91196.0,91195.0,0.002]
[1765158586829,0.1163255,91187.0,91186.0,0.00016452]
[1765158587126,0.0546,91165.0,91164.0,0.10567]
[1765158587322,0.0109673,91173.0,91172.0,0.05277]
[1765158587632,0.0546,91173.0,91172.0,0.10567]
[1765158587826,0.10536,91173.0,91172.0,0.10567]
[1765158588431,0.10536,91173.0,91172.0,0.10967]
[1765158588831,0.05893772,91178.0,91177.0,0.09897]
[1765158589027,0.05893772,91181.0,91180.0,0.09897]
[1765158589236,0.00016452,91182.0,91181.0,0.1099363]
[1765158589930,0.00016452,91182.0,91181.0,0.09897]
[1765158590140,0.00016452,91182.0,91177.0,0.001]
[1765158590141,0.09975,91178.0,91177.0,0.001]
[1765158590329,0.12514471,91178.0,91177.0,0.001]
[1765158590635,0.37514471,91178.0,91177.0,0.001]
[1765158590836,0.12514471,91178.0,91177.0,0.001]
[1765158591428,0.12514471,91178.0,91177.0,0.04952]
[1765158591628,0.12514471,91178.0,91177.0,0.04852]
[1765158592338,0.12514471,91178.0,91177.0,0.09897]
[1765158592530,0.12814471,91178.0,91177.0,0.09897]
[1765158592732,0.12814471,91178.0,91177.0,0.09997]
[1765158593332,0.05893772,91196.0,91195.0,0.09897]
[1765158593631,0.05893772,91196.0,91179.0,0.02129]
[1765158593632,0.09975,91193.0,91192.0,0.09897]
[1765158594227,0.05078,91193.0,91192.0,0.09897]
[1765158595536,0.10375,91193.0,91192.0,0.09897]
[1765158595936,0.10475,91193.0,91192.0,0.09897]
[1765158596244,0.05578,91193.0,91192.0,0.09897]
[1765158596844,0.10475,91193.0,91192.0,0.09897]
[1765158597053,0.10475,91193.0,91192.0,0.20897]
[1765158597932,0.10475,91193.0,91192.0,0.11]
[1765158598232,0.35475,91193.0,91192.0,0.11]
[1765158598432,0.1068359,91184.0,91183.0,0.00016452]
[1765158598735,0.3568359,91184.0,91183.0,0.00016452]
[1765158599740,0.3568359,91184.0,91183.0,0.00216452]
[1765158599940,0.09587,91165.0,91164.0,0.0607083]
[1765158600246,0.09587,91165.0,91164.0,0.1094883]
[1765158601236,0.09587,91160.0,91159.0,0.04974]
[1765158601448,0.09587,91156.0,91155.0,0.00016452]
[1765158601946,0.09587,91156.0,91155.0,0.09868452]
[1765158602549,0.09587,91163.0,91162.0,0.09852]
[1765158603441,0.0486,91163.0,91162.0,0.09852]
[1765158604351,0.002,91163.0,91162.0,0.09852]
[1765158604845,0.001,91163.0,91157.0,0.03059]
[1765158605050,0.001,91163.0,91162.0,0.09852]
[1765158605446,0.09587,91168.0,91167.0,0.0607079]
[1765158605646,0.12038784,91168.0,91167.0,0.1094879]
[1765158605842,0.04876452,91174.0,91173.0,0.09852]
[1765158606038,0.12055143,91174.0,91173.0,0.09852]
[1765158607744,0.02568143,91174.0,91164.0,0.07871795]
[1765158607945,0.09587,91156.0,91155.0,0.04990452]
[1765158608145,0.09587,91156.0,91155.0,0.09868452]
[1765158608649,0.0486,91156.0,91155.0,0.09868452]
[1765158610160,0.1068382,91166.0,91165.0,0.09852]
[1765158610351,0.13137833,91166.0,91165.0,0.09852]
[1765158610655,0.13137833,91166.0,91165.0,0.04974]
[1765158611356,0.13437833,91166.0,91165.0,0.04974]
[1765158611758,0.12441013,91166.0,91165.0,0.09852]
[1765158612651,0.10209,91156.0,91155.0,0.05199452]
[1765158612955,0.10209,91156.0,91155.0,0.00016452]
[1765158613958,0.05086,91141.0,91140.0,0.13377]
[1765158614257,0.10209,91141.0,91140.0,0.1447412]
[1765158614454,0.10209,91141.0,91140.0,0.1141512]
[1765158615453,0.05086,91141.0,91140.0,0.1452812]
[1765158616257,0.05086,91141.0,91140.0,0.1482812]
[1765158616452,0.10209,91141.0,91140.0,0.13731]
[1765158616663,0.10209,91141.0,91140.0,0.003]
[1765158616859,0.10209,91141.0,91131.0,0.00016452]
[1765158616860,0.0410512,91140.0,91135.0,0.0109718]
[1765158617162,0.10225452,91150.0,91149.0,0.10318]
[1765158617355,0.1477553,91150.0,91149.0,0.10318]
[1765158617670,0.1267853,91150.0,91149.0,0.10318]
[1765158617960,0.0246953,91150.0,91149.0,0.47318]
[1765158618159,0.00016452,91150.0,91149.0,0.47318]
[1765158618957,0.00116452,91150.0,91149.0,0.47318]
[1765158619656,0.00416452,91150.0,91149.0,0.47318]
[1765158619852,0.1130579,91168.0,91167.0,0.10318]
[1765158620052,0.13757517,91168.0,91167.0,0.10318]
[1765158621163,0.24957517,91168.0,91167.0,0.10318]
[1765158621670,0.10209,91159.0,91158.0,0.00016452]
[1765158621856,0.0109711,91141.0,91130.0,0.09887975]
[1765158622166,0.10209,91135.0,91134.0,0.1141518]
[1765158622463,0.10209,91127.0,91126.0,0.05210435]
[1765158623562,0.05086,91134.0,91131.0,0.0109722]
[1765158623764,0.002,91135.0,91134.0,0.1141519]
[1765158623963,0.00016452,91136.0,91134.0,0.5041519]
[1765158624163,0.00016452,91136.0,91135.0,0.13431]
[1765158624371,0.00016452,91136.0,91135.0,0.54431]
[1765158624770,0.00016452,91136.0,91135.0,0.55431]
[1765158625263,0.05086,91155.0,91154.0,0.1141494]
[1765158625458,0.0618289,91160.0,91159.0,0.10318]
[1765158625665,0.08634855,91160.0,91159.0,0.10318]
[1765158625860,0.13757855,91160.0,91159.0,0.10318]
[1765158626772,0.12660965,91160.0,91159.0,0.10318]
[1765158626968,0.02451965,91160.0,91159.0,0.10518]
[1765158627266,0.02451965,91160.0,91159.0,0.18518]
[1765158627473,0.12660965,91160.0,91159.0,0.002]
[1765158628366,0.02451965,91160.0,91159.0,0.10518]
[1765158629267,0.02451965,91160.0,91159.0,0.41518]
[1765158630171,0.00016452,91169.0,91168.0,0.1452778]
[1765158630472,0.02472729,91169.0,91168.0,0.1452778]
[1765158631472,0.02672729,91169.0,91168.0,0.1452778]
[1765158631968,0.02772729,91169.0,91168.0,0.1452778]
[1765158632667,0.10209,91165.0,91164.0,0.0109683]
[1765158632874,0.10209,91161.0,91160.0,0.05183]
[1765158633074,0.12665277,91161.0,91160.0,0.10318]
[1765158633860,0.02456277,91161.0,91160.0,0.50318]
[1765158634172,0.02456277,91161.0,91160.0,0.10318]
[1765158634373,0.02456277,91161.0,91160.0,0.30318]
[1765158634565,0.05102452,91169.0,91168.0,0.10318]
[1765158634760,0.07538635,91169.0,91168.0,0.10318]
[1765158635168,0.12661635,91169.0,91168.0,0.10318]
[1765158635371,0.02452635,91169.0,91168.0,0.13431]
[1765158635771,0.12661635,91169.0,91168.0,0.10318]
[1765158636163,0.12661635,91169.0,91168.0,0.10618]
[1765158636669,0.12661635,91169.0,91165.0,0.0109681]
[1765158636874,0.10209,91166.0,91165.0,0.05183]
[1765158637271,0.10209,91158.0,91157.0,0.1141491]
[1765158637471,0.10209,91151.0,91150.0,0.00016452]
[1765158637678,0.0109689,91159.0,91153.0,0.0109696]
[1765158637872,0.10209,91151.0,91150.0,0.05199452]
[1765158638174,0.10209,91151.0,91150.0,0.10334452]
[1765158638664,0.10209,91151.0,91150.0,0.10434452]
[1765158639163,0.10209,91151.0,91150.0,0.11034452]
[1765158639361,0.10209,91151.0,91150.0,0.00716452]
[1765158639984,0.12645984,91151.0,91150.0,0.11034452]
[1765158640274,0.07522984,91151.0,91150.0,0.11034452]
[1765158640673,0.12645984,91151.0,91150.0,0.05899452]
[1765158640973,0.13742974,91151.0,91150.0,0.05899452]
[1765158641376,0.13742974,91151.0,91150.0,0.00716452]
[1765158641576,0.13742974,91151.0,91150.0,0.00516452]
[1765158641776,0.12645984,91151.0,91150.0,0.10451452]
[1765158642274,0.12645984,91151.0,91150.0,0.10351452]
[1765158643077,0.12645984,91151.0,91150.0,0.05599452]
[1765158643470,0.12645984,91151.0,91150.0,0.00416452]
[1765158643666,0.37645984,91151.0,91150.0,0.00416452]
[1765158644775,0.37645984,91151.0,91150.0,0.00216452]
[1765158644970,0.37745984,91151.0,91150.0,0.00216452]
[1765158645277,0.12307984,91151.0,91150.0,0.10046452]
[1765158645475,0.12307984,91151.0,91150.0,0.10146452]
[1765158646574,0.12307984,91151.0,91150.0,0.10246452]
[1765158646773,0.12207984,91151.0,91150.0,0.10246452]
[1765158646963,0.12307984,91151.0,91150.0,0.10246452]
[1765158647568,0.12207984,91151.0,91150.0,0.10246452]
[1765158648168,0.17207984,91151.0,91150.0,0.00216452]
[1765158649471,0.05185,91130.0,91129.0,0.1112724]
[1765158649773,0.0987,91130.0,91129.0,0.1112724]
[1765158650973,0.0987,91130.0,91129.0,0.1132724]
[1765158651270,0.0987,91130.0,91129.0,0.1202724]
[1765158652778,0.1096718,91136.0,91135.0,0.1003]
[1765158652982,0.13403081,91136.0,91135.0,0.1003]
[1765158654084,0.13403081,91136.0,91135.0,0.1013]
[1765158654281,0.13403081,91136.0,91135.0,0.1043]
[1765158654783,0.1096718,91136.0,91135.0,0.1043]
[1765158656089,0.00016452,91139.0,91138.0,0.1112714]
[1765158656284,0.05201452,91139.0,91138.0,0.1112714]
[1765158656587,0.00016452,91139.0,91138.0,0.1112714]
[1765158657292,0.09636452,91139.0,91138.0,0.1023]
[1765158658383,0.09636452,91139.0,91138.0,0.1033]
[1765158659089,0.09636452,91139.0,91138.0,0.003]
[1765158660391,0.08914,91131.0,91130.0,0.1059423]
[1765158660588,0.1001128,91127.0,91126.0,0.00027435]
[1765158660989,0.08914,91127.0,91126.0,0.10621725]
[1765158661492,0.04479,91127.0,91126.0,0.51621725]
[1765158662087,0.04479,91127.0,91126.0,0.51921725]
[1765158662588,0.1001128,91127.0,91126.0,0.09824435]
[1765158662891,0.08914,91127.0,91126.0,0.09924435]
[1765158664592,0.04479,91127.0,91126.0,0.09924435]
[1765158664782,0.10027582,91139.0,91138.0,0.09497]
[1765158664986,0.12472153,91139.0,91138.0,0.09497]
[1765158665592,0.00016452,91139.0,91138.0,0.09497]
[1765158666192,0.00116452,91139.0,91138.0,0.09497]
[1765158666591,0.00216452,91139.0,91138.0,0.09497]
[1765158667191,0.09130452,91139.0,91138.0,0.09497]
[1765158667395,0.1157724,91139.0,91138.0,0.09497]
[1765158667593,0.1147724,91139.0,91138.0,0.09497]
[1765158667896,0.1147724,91139.0,91138.0,0.09797]
[1765158668785,0.1137724,91139.0,91138.0,0.09897]
[1765158670095,0.0246324,91139.0,91138.0,0.09897]
[1765158670488,0.1137724,91139.0,91138.0,0.09897]
[1765158671379,0.11378856,91139.0,91138.0,0.09897]
[1765158673091,0.11378856,91139.0,91138.0,0.004]
[1765158673397,0.36378856,91139.0,91138.0,0.004]
[1765158675388,0.36478856,91139.0,91138.0,0.003]
[1765158675696,0.08918,91127.0,91126.0,0.04498435]
[1765158675890,0.11366404,91127.0,91126.0,0.04498435]
[1765158676194,0.11366404,91127.0,91126.0,0.09038435]
[1765158676799,0.11366404,91127.0,91126.0,0.09438435]
[1765158676986,0.11366404,91127.0,91126.0,0.09538435]
[1765158677296,0.11366404,91127.0,91126.0,0.16538435]
[1765158677297,0.02448404,91127.0,91126.0,0.16538435]
[1765158677500,0.08918,91128.0,91127.0,0.09011]
[1765158677703,0.11367633,91128.0,91127.0,0.21011]
[1765158678398,0.02449633,91128.0,91127.0,0.4510828]
[1765158678894,0.02449633,91128.0,91127.0,0.4520828]
[1765158679096,0.02449633,91128.0,91127.0,0.4550828]
[1765158679600,0.02233173,91128.0,91127.0,0.4550828]
[1765158679786,0.00016452,91139.0,91138.0,0.1010814]
[1765158679988,0.00016452,91139.0,91138.0,0.5010814]
[1765158682194,0.00016452,91139.0,91138.0,0.5040814]
[1765158682697,0.00016452,91139.0,91138.0,0.1650814]
[1765158682996,0.00016452,91139.0,91138.0,0.1660814]
[1765158683700,0.00016452,91139.0,91138.0,0.5060814]
[1765158684204,0.1001492,91158.0,91157.0,0.09011]
[1765158684694,0.0571492,91158.0,91157.0,0.09011]
[1765158684899,0.04618,91158.0,91157.0,0.09011]
[1765158685496,0.05118,91158.0,91157.0,0.09011]
[1765158685996,0.005,91158.0,91157.0,0.09011]
[1765158686202,0.003,91158.0,91157.0,0.45011]
[1765158686401,0.001,91158.0,91157.0,0.45011]
[1765158687096,0.001,91158.0,91157.0,0.45211]
[1765158688300,0.00016452,91167.0,91166.0,0.09011]
[1765158689301,0.00016452,91167.0,91166.0,0.1010781]
[1765158689703,0.00016452,91167.0,91166.0,0.1040781]
[1765158691004,0.00016452,91167.0,91166.0,0.5240781]
[1765158692305,0.1001457,91187.0,91186.0,0.0454]
[1765158692512,0.11358041,91187.0,91186.0,0.09011]
[1765158692702,0.02440041,91187.0,91186.0,0.47011]
[1765158693014,0.1001436,91203.0,91202.0,0.09011]
[1765158693207,0.12414885,91203.0,91202.0,0.09011]
[1765158693397,0.11318525,91203.0,91202.0,0.09011]
[1765158694413,0.08918,91203.0,91202.0,0.09011]
[1765158694708,0.1131496,91203.0,91202.0,0.09011]
[1765158695302,0.1161496,91203.0,91202.0,0.09011]
[1765158695795,0.04918,91203.0,91202.0,0.09011]
[1765158696000,0.003,91203.0,91202.0,0.09011]
[1765158696406,0.04918,91203.0,91202.0,0.09011]
[1765158696603,0.09218,91203.0,91202.0,0.09011]
[1765158697399,0.003,91203.0,91202.0,0.09011]
[1765158698607,0.09218,91203.0,91202.0,0.09011]
[1765158698910,0.08918,91194.0,91193.0,0.09027452]
[1765158699303,0.100144,91200.0,91199.0,0.0454]
[1765158699607,0.010964,91200.0,91199.0,0.09011]
[1765158700009,0.003,91203.0,91202.0,0.09011]
[1765158700603,0.002,91203.0,91202.0,0.09011]
[1765158700814,0.01123741,91206.0,91205.0,0.09011]
[1765158701107,0.05741741,91206.0,91205.0,0.09011]
[1765158701302,0.10041741,91206.0,91205.0,0.09011]
[1765158701501,0.24041741,91206.0,91205.0,0.09011]
[1765158702409,0.24141741,91206.0,91205.0,0.09011]
[1765158702610,0.10541741,91206.0,91205.0,0.09011]
[1765158707605,0.08779,91198.0,91197.0,0.08402]
[1765158707909,0.04614,91198.0,91197.0,0.08402]
[1765158708116,0.0109641,91199.0,91198.0,0.08402]
[1765158708410,0.08779,91199.0,91198.0,0.04294]
[1765158708610,0.08779,91199.0,91198.0,0.08402]
[1765158708801,0.0571035,91205.0,91204.0,0.08402]
[1765158709000,0.12267553,91205.0,91204.0,0.08402]
[1765158710610,0.12367553,91205.0,91204.0,0.08402]
[1765158710814,0.37767553,91205.0,91204.0,0.04294]
[1765158711015,0.37767553,91205.0,91204.0,0.08402]
[1765158711918,0.14767553,91205.0,91204.0,0.08402]
[1765158712109,0.37767553,91205.0,91204.0,0.08402]
[1765158712310,0.37767553,91205.0,91193.0,0.01112932]
[1765158712311,0.08779,91194.0,91193.0,0.00016452]
[1765158712510,0.08779,91194.0,91168.0,0.02548]
[1765158712511,0.01385,91184.0,91179.0,0.0109665]
[1765158712809,0.0526169,91176.0,91175.0,0.08402]
[1765158713016,0.08779,91176.0,91175.0,0.08402]
[1765158713210,0.0987559,91184.0,91183.0,0.08402]
[1765158713414,0.12273814,91184.0,91183.0,0.08402]
[1765158714520,0.12273814,91184.0,91183.0,0.09002]
[1765158718021,0.11177224,91184.0,91183.0,0.09002]
[1765158718621,0.02398224,91184.0,91183.0,0.09002]
[1765158719720,0.02398224,91184.0,91183.0,0.08802]
[1765158719914,0.02398224,91184.0,91183.0,0.08502]
[1765158720120,0.02398224,91184.0,91183.0,0.08602]
[1765158720821,0.02398224,91184.0,91183.0,0.50602]
[1765158723518,0.00016452,91193.0,91192.0,0.09675]
[1765158723718,0.00016452,91193.0,91192.0,0.4877149]
[1765158723913,0.02428946,91193.0,91192.0,0.4877149]
[1765158724113,0.10249946,91193.0,91192.0,0.0872649]
[1765158724315,0.07821,91184.0,91183.0,0.04008]
[1765158724626,0.37419494,91184.0,91183.0,0.001]
[1765158724819,0.37419494,91184.0,91158.0,0.010969]
[1765158724820,0.0891789,91159.0,91158.0,0.03808]
[1765158725018,0.0891789,91159.0,91152.0,0.02312]
[1765158725019,0.07821,91153.0,91152.0,0.0763]
[1765158725220,0.02412494,91153.0,91152.0,0.4872698]
[1765158725426,0.05909101,91161.0,91159.0,0.0763]
[1765158725625,0.02411866,91160.0,91159.0,0.4963]
[1765158726517,0.02411866,91160.0,91159.0,0.4973]
[1765158726717,0.02411866,91160.0,91159.0,0.3673]
[1765158726934,0.02411866,91160.0,91159.0,0.3683]
[1765158727231,0.02411866,91160.0,91159.0,0.3673]
[1765158727429,0.02411866,91160.0,91159.0,0.0783]
[1765158727632,0.06386866,91160.0,91159.0,0.0783]
[1765158728720,0.02411866,91160.0,91159.0,0.4283]
[1765158732237,0.02411866,91160.0,91159.0,0.1783]
[1765158732831,0.02411866,91160.0,91159.0,0.3683]
[1765158732832,0.10014866,91160.0,91159.0,0.3683]
[1765158733029,0.02411866,91160.0,91159.0,0.3683]
[1765158733333,0.02411866,91160.0,91150.0,0.00016452]
[1765158733334,0.07505,91151.0,91150.0,4.52e-06]
[1765158733535,0.07505,91127.0,91126.0,0.03877435]
[1765158733837,0.09916866,91127.0,91126.0,0.07460435]
[1765158734428,0.09916866,91127.0,91126.0,0.00027435]
[1765158734626,0.09916866,91127.0,91110.0,0.14202719]
[1765158734627,0.03877,91111.0,91110.0,0.14202719]
[1765158734832,0.0860236,91121.0,91120.0,0.07433]
[1765158735238,0.0860236,91121.0,91120.0,0.0385]
[1765158735540,0.0860236,91121.0,91111.0,0.06769719]
[1765158735838,0.0860236,91121.0,91120.0,0.0385]
[1765158736029,0.0860236,91121.0,91120.0,0.07533]
[1765158737236,0.0860236,91121.0,91120.0,0.07733]
[1765158737439,0.0497429,91127.0,91126.0,0.07433]
[1765158737745,0.0860229,91127.0,91126.0,0.07433]
[1765158739124,0.0109723,91132.0,91131.0,0.07433]
[1765158739331,0.01113622,91136.0,91135.0,0.07433]
[1765158739637,0.00016452,91136.0,91135.0,0.07433]
[1765158740726,0.00216452,91136.0,91135.0,0.07433]
[1765158742234,0.00016452,91136.0,91135.0,0.07433]
[1765158742442,0.00116452,91136.0,91135.0,0.07433]
[1765158745440,0.00116452,91136.0,91135.0,0.49433]
[1765158745830,0.0860198,91152.0,91151.0,0.07433]
[1765158746038,0.0109698,91152.0,91151.0,0.07433]
[1765158746539,0.0860198,91152.0,91151.0,0.07433]
[1765158746935,0.0880198,91152.0,91151.0,0.07433]
[1765158747137,0.0975,91143.0,91142.0,0.00016461]
[1765158748038,0.07505,91143.0,91142.0,0.07449461]
[1765158748231,0.0109707,91144.0,91143.0,0.07433]
[1765158749241,0.0109702,91149.0,91148.0,0.07433]
[1765158749546,0.01270461,91161.0,91152.0,0.07433]
[1765158749547,0.0497397,91153.0,91152.0,0.07433]
[1765158749932,0.0109697,91153.0,91152.0,0.07433]
[1765158751841,0.0129697,91153.0,91152.0,0.07433]
[1765158752048,0.0517397,91153.0,91152.0,0.07433]
[1765158752345,0.0880197,91153.0,91152.0,0.07433]
[1765158752649,0.0129697,91153.0,91152.0,0.07433]
[1765158753246,0.002,91153.0,91152.0,0.46433]
[1765158753653,0.00016461,91161.0,91160.0,0.09671]
[1765158753853,0.00016461,91161.0,91160.0,0.48671]
[1765158754351,0.00016461,91161.0,91160.0,0.4976788]
[1765158755146,0.00027423,91166.0,91165.0,0.0852982]
[1765158755449,0.00027423,91166.0,91165.0,0.4752982]
[1765158756550,0.00027423,91166.0,91165.0,0.4772982]
[1765158757053,0.00016461,91175.0,91174.0,0.07433]
[1765158757350,0.02430154,91175.0,91174.0,0.07433]
[1765158758452,0.02530154,91175.0,91174.0,0.07433]
[1765158759453,0.00016461,91175.0,91174.0,0.07433]
[1765158759952,0.03893461,91175.0,91174.0,0.07433]
[1765158760154,0.06306561,91175.0,91174.0,0.07433]
[1765158760352,0.03893461,91175.0,91174.0,0.07433]
[1765158760944,0.00016461,91175.0,91174.0,0.07433]
[1765158762748,0.03893461,91175.0,91174.0,0.07533]
[1765158763045,0.08635461,91175.0,91174.0,0.07533]
[1765158764658,0.08635461,91175.0,91174.0,0.07433]
[1765158764851,0.11147982,91175.0,91174.0,0.07433]
[1765158765253,0.11047982,91175.0,91174.0,0.07433]
[1765158767058,0.08441,91166.0,91165.0,0.08659452]
[1765158767260,0.10853521,91166.0,91165.0,0.08659452]
[1765158767444,0.02412521,91166.0,91165.0,0.08659452]
[1765158767649,0.08441,91173.0,91172.0,0.08643]
[1765158767846,0.02413632,91173.0,91172.0,0.08643]
[1765158768050,0.02413632,91173.0,91172.0,0.50643]
[1765158768254,0.02413632,91173.0,91172.0,0.08643]
[1765158769056,0.02413632,91173.0,91172.0,0.08743]
[1765158769253,0.02413632,91173.0,91172.0,0.28743]
[1765158770160,0.02413632,91173.0,91172.0,0.08743]
[1765158770557,0.10854632,91173.0,91172.0,0.001]
[1765158770761,0.10854632,91173.0,91172.0,0.50743]
[1765158771170,0.10854632,91173.0,91172.0,0.08743]
[1765158771758,0.02513632,91173.0,91172.0,0.08643]
[1765158772263,0.02413632,91173.0,91172.0,0.08643]
[1765158773057,0.06112632,91173.0,91172.0,0.08643]
[1765158773455,0.0109702,91148.0,91140.0,0.12449658]
[1765158773660,0.0109702,91148.0,91136.0,0.02297]
[1765158773661,0.08441,91145.0,91144.0,0.09643]
[1765158773962,0.08441,91140.0,91139.0,0.08643]
[1765158774155,0.0953807,91145.0,91144.0,0.08643]
[1765158774361,0.07213513,91145.0,91144.0,0.08643]
[1765158774861,0.03699,91145.0,91144.0,0.09043]
[1765158775066,0.0109699,91151.0,91144.0,0.374]
[1765158775263,0.0953801,91149.0,91148.0,0.08643]
[1765158775454,0.11955466,91149.0,91148.0,0.08643]
[1765158776255,0.10858456,91149.0,91148.0,0.08643]
[1765158776569,0.02417456,91149.0,91148.0,0.26643]
[1765158776859,0.01113412,91154.0,91153.0,0.08643]
[1765158777057,0.09380412,91154.0,91153.0,0.08643]
[1765158777258,0.11798326,91154.0,91153.0,0.08643]
[1765158778763,0.02434366,91154.0,91153.0,0.08643]
[1765158780463,0.02434366,91154.0,91153.0,0.0983996]
[1765158781161,0.02434366,91154.0,91153.0,0.5083996]
[1765158781351,0.02434366,91154.0,91153.0,0.49743]
[1765158782575,0.11541366,91154.0,91153.0,0.03655]
[1765158782757,0.11541366,91154.0,91153.0,0.08023]
[1765158783861,0.04539,91144.0,91143.0,0.02297]
[1765158784050,0.09107,91144.0,91143.0,0.27051]
[1765158784652,0.04539,91144.0,91143.0,0.27051]
[1765158785058,0.04539,91144.0,91143.0,0.27351]
[1765158785259,0.04539,91144.0,91143.0,0.27451]
[1765158785554,0.11307,91144.0,91143.0,0.04786]
[1765158785758,0.09107,91144.0,91143.0,0.09154]
[1765158786561,0.09107,91144.0,91143.0,0.46154]
[1765158786763,0.09107,91144.0,91143.0,0.09154]
[1765158787059,0.1869552,91144.0,91143.0,0.004]
[1765158787367,0.1152217,91136.0,91126.0,0.00027435]
[1765158787566,0.1391069,91136.0,91126.0,0.00027435]
[1765158787953,0.09107,91127.0,91126.0,0.00027435]
[1765158788154,0.09107,91127.0,91086.0,0.0900793]
[1765158788155,0.1020443,91115.0,91114.0,0.08754]
[1765158788354,0.02636,91125.0,91101.0,0.01060259]
[1765158788355,0.09107,91105.0,91104.0,0.09259694]
[1765158788562,0.09107,91105.0,91104.0,0.00505694]
[1765158788861,0.11494632,91105.0,91104.0,0.00505694]
[1765158789366,0.09107,91105.0,91104.0,0.00505694]
[1765158789564,0.09107,91105.0,91104.0,0.04891694]
[1765158790760,0.09107,91105.0,91104.0,0.05291694]
[1765158790961,0.09107,91105.0,91104.0,0.09659694]
[1765158791261,0.0109746,91112.0,91104.0,0.09859694]
[1765158791468,0.09961948,91112.0,91111.0,0.08754]
[1765158792772,0.09107,91112.0,91111.0,0.08754]
[1765158792963,0.1020446,91112.0,91111.0,0.08854]
[1765158793865,0.04718462,91114.0,91113.0,0.08834]
[1765158794274,0.09137462,91114.0,91113.0,0.08834]
[1765158794674,0.04718462,91114.0,91113.0,0.43834]
[1765158794876,0.09137462,91114.0,91113.0,0.16834]
[1765158795074,0.09137462,91114.0,91113.0,0.16934]
[1765158795372,0.00016462,91114.0,91113.0,0.4603145]
[1765158795774,0.00016462,91114.0,91113.0,0.1203145]
[1765158795970,0.09137462,91114.0,91113.0,0.08934]
[1765158797171,0.09137462,91114.0,91113.0,0.001]
[1765158797471,0.09137462,91114.0,91113.0,0.08934]
[1765158798781,0.00016462,91114.0,91113.0,0.08934]
[1765158800173,0.09137462,91114.0,91113.0,0.08934]
[1765158800380,0.00016462,91114.0,91113.0,0.08934]
[1765158800769,0.00016462,91114.0,91113.0,0.43934]
[1765158801181,0.1021825,91130.0,91129.0,0.08834]
[1765158801374,0.057992,91134.0,91133.0,0.08834]
[1765158801681,0.102182,91134.0,91133.0,0.08834]
[1765158802371,0.0109718,91136.0,91135.0,0.08834]
[1765158803076,0.0579918,91136.0,91135.0,0.08834]
[1765158803285,0.1021818,91136.0,91135.0,0.08834]
[1765158803485,0.04702,91140.0,91139.0,0.08834]
[1765158803781,0.00016462,91143.0,91142.0,0.08834]
[1765158804672,0.00016462,91143.0,91142.0,0.49834]
[1765158804870,0.0109689,91159.0,91158.0,0.08834]
[1765158805070,0.0579884,91164.0,91160.0,0.02772]
[1765158805280,0.0579884,91164.0,91163.0,0.08834]
[1765158805781,0.2821784,91164.0,91163.0,0.08834]
[1765158805982,0.1021784,91164.0,91163.0,0.08834]
[1765158806481,0.05102,91164.0,91163.0,0.08834]
[1765158806877,0.04702,91164.0,91163.0,0.08834]
[1765158807078,0.09421,91164.0,91163.0,0.08834]
[1765158807784,0.1021794,91155.0,91154.0,0.08850462]
[1765158807979,0.1021794,91155.0,91154.0,0.00016462]
[1765158808284,0.09521,91164.0,91163.0,0.04208]
[1765158808474,0.1051784,91164.0,91163.0,0.08834]
[1765158808673,0.1041784,91164.0,91163.0,0.08834]
[1765158808884,0.002,91164.0,91163.0,0.08834]
[1765158809082,0.00027423,91166.0,91165.0,0.08834]
[1765158809378,0.09148423,91166.0,91165.0,0.08834]
[1765158810187,0.09448423,91166.0,91165.0,0.08834]
[1765158811085,0.00327423,91166.0,91165.0,0.08834]
[1765158811281,0.00327423,91166.0,91165.0,0.48834]
[1765158811588,0.00327423,91166.0,91165.0,0.08834]
[1765158811785,0.09448423,91166.0,91165.0,0.04626]
[1765158812188,0.09148423,91166.0,91165.0,0.04626]
[1765158812490,0.09248423,91166.0,91165.0,0.04626]